fUST/lending_fUST_20241025
["ID","MTS","AMOUNT","RATE_DAILY","PERIOD"]
[340766929,1729789842422,-500.0,0.0001746,2]
[340766931,1729789842432,-500.0,0.0001746,2]
[340766933,1729789842442,-247.80818204,0.0001746,2]
[340766936,1729789842453,-1004.59,0.0001746,2]
[340766938,1729789842462,-1594.9,0.0001746,2]
[340766940,1729789842472,-500.0,0.0001746,2]
[340766942,1729789842484,-500.0,0.0001746,2]
[340766944,1729789842494,-1091.5,0.0001746,2]
[340766946,1729789842506,-597.7,0.0001746,2]
[340766947,1729789842516,-685.64,0.0001746,2]
[340766948,1729789842527,-500.0,0.0001746,2]
[340766949,1729789842536,-500.0,0.0001746,2]
[340766950,1729789842545,-891.63,0.0001746,2]
[340766951,1729789842556,-1345.19,0.0001746,2]
[340766952,1729789842567,-3072.38,0.0001746,2]
[340766953,1729789842577,-624.99,0.0001746,2]
[340766954,1729789842590,-545.49550332,0.0001746,2]
[340766955,1729789842600,-500.0,0.0001746,2]
[340766956,1729789842609,-500.0,0.0001746,2]
[340766957,1729789842618,-500.0,0.0001746,2]
[340766958,1729789842629,-1209.64,0.0001746,2]
[340766960,1729789842638,-500.0,0.0001746,2]
[340766962,1729789842648,-1080.97,0.0001746,2]
[340766964,1729789842658,-865.67,0.0001746,2]
[340766966,1729789842671,-507.29436373,0.0001746,2]
[340766968,1729789842680,-2069.79,0.0001746,2]
[340766970,1729789842691,-500.0,0.0001746,2]
[340766973,1729789842702,-500.0,0.0001746,2]
[340766975,1729789842712,-848.64,0.0001746,2]
[340766977,1729789842722,-500.0,0.0001746,2]
[340766979,1729789842732,-1288.91,0.0001746,2]
[340766981,1729789842742,-1564.41,0.0001746,2]
[340766983,1729789842751,-1074.95,0.0001746,2]
[340766985,1729789842761,-1213.1,0.0001746,2]
[340766987,1729789842771,-1286.49,0.0001746,2]
[340766989,1729789842781,-751.98,0.0001746,2]
[340766991,1729789842790,-514.43,0.0001746,2]
[340766993,1729789842799,-634.3,0.0001746,2]
[340766995,1729789842812,-500.0,0.0001746,2]
[340766997,1729789842821,-151.0,0.0001746,2]
[340767000,1729789842833,-1766.77,0.0001746,2]
[340767002,1729789842842,-1385.79,0.0001746,2]
[340767004,1729789842853,-1501.53,0.0001746,2]
[340767006,1729789842866,-716.21,0.0001746,2]
[340767008,1729789842876,-151.0,0.0001746,2]
[340767010,1729789842885,-796.63,0.0001746,2]
[340767013,1729789842895,-683.03,0.0001746,2]
[340767015,1729789842905,-1571.62,0.0001746,2]
[340767017,1729789842915,-500.0,0.00017473,2]
[340767019,1729789842923,-500.0,0.00017473,2]
[340767021,1729789842934,-500.0,0.00017473,2]
[340767023,1729789842943,-251.48219743,0.00017473,2]
[340767025,1729789842953,-500.0,0.00017473,2]
[340767027,1729789842963,-150.112233,0.000175,2]
[340767029,1729789842972,-150.112233,0.000176,2]
[340767031,1729789842983,-150.112233,0.000177,2]
[340767033,1729789842992,-500.0,0.00017723,2]
[340767035,1729789843001,-27695.3330404,0.00017724,2]
[340767037,1729789843013,-523.05,0.00017732,2]
[340767039,1729789843024,-2071.35,0.00017733,2]
[340767041,1729789843034,-575.95,0.00017733,2]
[340767043,1729789843043,-562.47,0.00017733,2]
[340767045,1729789843052,-1285.11,0.00017733,2]
[340767047,1729789843063,-32978.38,0.00017733,2]
[340767049,1729789843073,-6136.0,0.00017733,2]
[340767051,1729789843089,-1770.48,0.00017733,2]
[340767053,1729789843099,-1423.02,0.00017733,2]
[340767055,1729789843109,-2717.85,0.00017733,2]
[340767057,1729789843118,-1631.97,0.00017733,2]
[340767059,1729789843128,-1734.87,0.00017733,2]
[340767061,1729789843139,-1056.92,0.00017733,2]
[340767063,1729789843149,-500.0,0.00017733,2]
[340767065,1729789843159,-500.0,0.00017734,2]
[340767067,1729789843168,-562.12,0.00017734,2]
[340767069,1729789843178,-500.0,0.00017734,2]
[340767072,1729789843188,-586.33,0.00017734,2]
[340767074,1729789843198,-1282.68,0.00017734,2]
[340767076,1729789843207,-500.0,0.00017734,2]
[340767078,1729789843216,-500.0,0.00017734,2]
[340767079,1729789843225,-215.84,0.00017734,2]
[340767081,1729789843234,-626.62,0.00017734,2]
[340767083,1729789843243,-500.0,0.00017734,2]
[340767085,1729789843252,-1820.83,0.00017734,2]
[340767087,1729789843261,-500.0,0.00017734,2]
[340767089,1729789843271,-500.0,0.00017734,2]
[340767092,1729789843282,-500.0,0.00017734,2]
[340767094,1729789843292,-2148.78,0.00017734,2]
[340767096,1729789843302,-1347.97,0.00017734,2]
[340767098,1729789843314,-411.5806146,0.00017734,2]
[340767100,1729789843325,-500.0,0.00017734,2]
[340767102,1729789843337,-500.0,0.00017734,2]
[340767104,1729789843347,-1349.98,0.00017734,2]
[340767106,1729789843357,-500.0,0.00017734,2]
[340767108,1729789843366,-523.86,0.00017734,2]
[340767110,1729789843376,-1500.41,0.00017734,2]
[340767112,1729789843385,-500.0,0.00017734,2]
[340767115,1729789843397,-500.0,0.00017734,2]
[340767117,1729789843407,-500.0,0.00017734,2]
[340767119,1729789843416,-1301.89,0.00017734,2]
[340767121,1729789843426,-1945.77,0.00017734,2]
[340767123,1729789843436,-958.18,0.00017734,2]
[340767125,1729789843445,-1778.14,0.00017734,2]
[340767127,1729789843454,-1123.9,0.00017734,2]
[340767129,1729789843465,-1001.56,0.00017734,2]
[340767131,1729789843475,-1023.52,0.00017734,2]
[340767133,1729789843486,-500.0,0.00017734,2]
[340767135,1729789843497,-572.24029881,0.00017734,2]
[340767138,1729789843508,-500.0,0.00017734,2]
[340767140,1729789843520,-632.65,0.00017734,2]
[340767142,1729789843529,-3490.8,0.00017734,2]
[340767144,1729789843540,-1098.64,0.00017734,2]
[340767146,1729789843550,-500.0,0.00017734,2]
[340767148,1729789843563,-500.0,0.00017734,2]
[340767151,1729789843574,-1004.59,0.00017734,2]
[340767153,1729789843584,-1594.9,0.00017734,2]
[340767155,1729789843595,-500.0,0.00017734,2]
[340767157,1729789843606,-500.0,0.00017734,2]
[340767159,1729789843617,-1091.5,0.00017734,2]
[340767161,1729789843629,-597.7,0.00017734,2]
[340767164,1729789843640,-685.64,0.00017734,2]
[340767166,1729789843651,-500.0,0.00017734,2]
[340767168,1729789843661,-500.0,0.00017734,2]
[340767170,1729789843671,-891.63,0.00017734,2]
[340767172,1729789843682,-1345.19,0.00017734,2]
[340767174,1729789843694,-3072.38,0.00017734,2]
[340767177,1729789843706,-624.99,0.00017734,2]
[340767179,1729789843716,-641.5438491,0.00017734,2]
[340767181,1729789843726,-500.0,0.00017734,2]
[340767183,1729789843736,-431.2748754,0.00017734,2]
[340767185,1729789843745,-1209.64,0.00017734,2]
[340767187,1729789843755,-500.0,0.00017734,2]
[340767189,1729789843766,-1080.97,0.00017734,2]
[340767191,1729789843775,-865.67,0.00017734,2]
[340767193,1729789843785,-2069.79,0.00017734,2]
[340767195,1729789843793,-500.0,0.00017734,2]
[340767197,1729789843802,-436.80523014,0.00017734,2]
[340767200,1729789843815,-848.64,0.00017734,2]
[340767202,1729789843825,-500.0,0.00017734,2]
[340767204,1729789843837,-1288.91,0.00017734,2]
[340767206,1729789843848,-1564.41,0.00017734,2]
[340767208,1729789843858,-1074.95,0.00017734,2]
[340767211,1729789843868,-1213.1,0.00017734,2]
[340767213,1729789843879,-1286.49,0.00017734,2]
[340767215,1729789843891,-751.98,0.00017734,2]
[340767217,1729789843902,-514.43,0.00017734,2]
[340767219,1729789843912,-634.3,0.00017734,2]
[340767221,1729789843923,-500.0,0.00017734,2]
[340767223,1729789843933,-151.0,0.00017734,2]
[340767225,1729789843942,-1766.77,0.00017734,2]
[340767227,1729789843953,-1385.79,0.00017734,2]
[340767229,1729789843962,-1501.53,0.00017734,2]
[340767232,1729789843972,-716.21,0.00017734,2]
[340767234,1729789843983,-151.0,0.00017734,2]
[340767236,1729789843992,-796.63,0.00017734,2]
[340767238,1729789844002,-683.03,0.00017734,2]
[340767240,1729789844011,-1571.62,0.00017734,2]
[340767242,1729789844020,-1000.0,0.00017747,2]
[340767244,1729789844029,-162.7348034,0.00017747,2]
[340767246,1729789844038,-1000.0,0.00017747,2]
[340767248,1729789844047,-150.112233,0.000178,2]
[340767250,1729789844057,-420.0,0.000178,2]
[340767252,1729789844066,-1500.0,0.00017847,2]
[340767254,1729789844076,-500.0,0.00017997,2]
[340767256,1729789844089,-41542.9995605,0.00017998,2]
[340767258,1729789844098,-151.0,0.00017998,2]
[340767260,1729789844108,-151.0,0.00017998,2]
[340767262,1729789844119,-151.0,0.00017998,2]
[340767264,1729789844128,-151.0,0.00017998,2]
[340767266,1729789844138,-151.0,0.00017998,2]
[340767268,1729789844147,-151.0,0.00017998,2]
[340767270,1729789844160,-151.0,0.00017998,2]
[340767272,1729789844170,-150.112233,0.00018,2]
[340767274,1729789844180,-523.05,0.00018006,2]
[340767276,1729789844190,-2071.35,0.00018007,2]
[340767278,1729789844199,-575.95,0.00018007,2]
[340767281,1729789844210,-562.47,0.00018007,2]
[340767283,1729789844220,-1285.11,0.00018007,2]
[340767285,1729789844232,-32978.38,0.00018007,2]
[340767287,1729789844241,-6136.0,0.00018007,2]
[340767289,1729789844251,-1770.48,0.00018007,2]
[340767291,1729789844260,-1423.02,0.00018007,2]
[340767293,1729789844272,-2717.85,0.00018007,2]
[340767295,1729789844281,-304.82010645,0.00018007,2]
[340767439,1729789845814,-500.0,0.00017186,2]
[340767441,1729789845824,-1327.14989355,0.00018007,2]
[340767443,1729789845835,-1734.87,0.00018007,2]
[340767445,1729789845844,-1056.92,0.00018007,2]
[340767447,1729789845854,-500.0,0.00018007,2]
[340767450,1729789845865,-500.0,0.00018008,2]
[340767452,1729789845875,-562.12,0.00018008,2]
[340767454,1729789845885,-500.0,0.00018008,2]
[340767456,1729789845895,-586.33,0.00018008,2]
[340767458,1729789845904,-1282.68,0.00018008,2]
[340767460,1729789845914,-500.0,0.00018008,2]
[340767462,1729789845923,-500.0,0.00018008,2]
[340767464,1729789845933,-215.84,0.00018008,2]
[340767466,1729789845942,-626.62,0.00018008,2]
[340767468,1729789845952,-546.05103055,0.00018008,2]
[340767470,1729789845961,-1820.83,0.00018008,2]
[340767472,1729789845971,-500.0,0.00018008,2]
[340767474,1729789845982,-555.28368061,0.00018008,2]
[340767476,1729789845991,-500.0,0.00018008,2]
[340767479,1729789846002,-2148.78,0.00018008,2]
[340767480,1729789846011,-1347.97,0.00018008,2]
[340767483,1729789846021,-500.0,0.00018008,2]
[340767485,1729789846032,-500.0,0.00018008,2]
[340767487,1729789846041,-1349.98,0.00018008,2]
[340767489,1729789846051,-500.0,0.00018008,2]
[340767491,1729789846061,-523.86,0.00018008,2]
[340767493,1729789846070,-1500.41,0.00018008,2]
[340767495,1729789846083,-500.0,0.00018008,2]
[340767497,1729789846093,-500.0,0.00018008,2]
[340767499,1729789846102,-500.0,0.00018008,2]
[340767501,1729789846111,-1301.89,0.00018008,2]
[340767503,1729789846120,-1945.77,0.00018008,2]
[340767505,1729789846133,-958.18,0.00018008,2]
[340767507,1729789846143,-1778.14,0.00018008,2]
[340767510,1729789846154,-1123.9,0.00018008,2]
[340767512,1729789846166,-1001.56,0.00018008,2]
[340767513,1729789846175,-1023.52,0.00018008,2]
[340767516,1729789846185,-500.0,0.00018008,2]
[340767517,1729789846194,-500.0,0.00018008,2]
[340767520,1729789846206,-632.65,0.00018008,2]
[340767522,1729789846216,-3490.8,0.00018008,2]
[340767524,1729789846226,-1098.64,0.00018008,2]
[340767526,1729789846238,-500.0,0.00018008,2]
[340767528,1729789846247,-151.0,0.00018008,2]
[340767531,1729789846258,-151.0,0.00018008,2]
[340767533,1729789846268,-500.0,0.00018008,2]
[340767535,1729789846278,-1004.59,0.00018008,2]
[340767537,1729789846291,-1594.9,0.00018008,2]
[340767539,1729789846302,-586.92994838,0.00018008,2]
[340767541,1729789846314,-500.0,0.00018008,2]
[340767543,1729789846324,-151.0,0.00018008,2]
[340767546,1729789846335,-1091.5,0.00018008,2]
[340767548,1729789846344,-597.7,0.00018008,2]
[340767550,1729789846354,-685.64,0.00018008,2]
[340767552,1729789846365,-500.0,0.00018008,2]
[340767554,1729789846375,-500.0,0.00018008,2]
[340767556,1729789846385,-151.0,0.00018008,2]
[340767558,1729789846395,-151.0,0.00018008,2]
[340767560,1729789846404,-891.63,0.00018008,2]
[340767562,1729789846415,-1345.19,0.00018008,2]
[340767565,1729789846426,-3072.38,0.00018008,2]
[340767567,1729789846437,-624.99,0.00018008,2]
[340767569,1729789846448,-298.873881,0.00018008,2]
[340767571,1729789846458,-298.873881,0.00018008,2]
[340767573,1729789846468,-500.0,0.00018008,2]
[340767575,1729789846477,-1209.64,0.00018008,2]
[340767577,1729789846487,-500.0,0.00018008,2]
[340767580,1729789846498,-1080.97,0.00018008,2]
[340767582,1729789846508,-151.0,0.00018008,2]
[340767584,1729789846517,-865.67,0.00018008,2]
[340767585,1729789846526,-151.0,0.00018008,2]
[340767587,1729789846535,-2069.79,0.00018008,2]
[340767589,1729789846544,-500.0,0.00018008,2]
[340767591,1729789846553,-848.64,0.00018008,2]
[340767593,1729789846563,-206.601643,0.00018008,2]
[340767595,1729789846572,-206.601643,0.00018008,2]
[340767597,1729789846581,-500.0,0.00018008,2]
[340767599,1729789846590,-1288.91,0.00018008,2]
[340767602,1729789846600,-1564.41,0.00018008,2]
[340767604,1729789846609,-1074.95,0.00018008,2]
[340767606,1729789846620,-1213.1,0.00018008,2]
[340767608,1729789846631,-1286.49,0.00018008,2]
[340767610,1729789846642,-751.98,0.00018008,2]
[340767612,1729789846651,-514.43,0.00018008,2]
[340767614,1729789846660,-634.3,0.00018008,2]
[340767616,1729789846670,-500.0,0.00018008,2]
[340767619,1729789846682,-1766.77,0.00018008,2]
[340767621,1729789846692,-151.0,0.00018008,2]
[340767623,1729789846701,-1385.79,0.00018008,2]
[340767625,1729789846710,-1501.53,0.00018008,2]
[340767627,1729789846719,-716.21,0.00018008,2]
[340767629,1729789846728,-151.0,0.00018008,2]
[340767631,1729789846737,-796.63,0.00018008,2]
[340767633,1729789846746,-683.03,0.00018008,2]
[340767635,1729789846756,-1571.62,0.00018008,2]
[340767637,1729789846767,-209.77156106,0.00018086,2]
[340767639,1729789846778,-42155.04155546,0.00018099,2]
[340767641,1729789846787,-151.0,0.00018099,2]
[340767643,1729789846796,-151.0,0.00018099,2]
[340767645,1729789846805,-151.0,0.00018099,2]
[340767647,1729789846814,-151.0,0.00018099,2]
[340767649,1729789846824,-151.0,0.00018099,2]
[340767651,1729789846833,-151.0,0.00018099,2]
[340767653,1729789846842,-151.0,0.00018099,2]
[340767656,1729789846853,-150.112233,0.000181,2]
[340767658,1729789846864,-1500.0,0.00018147,2]
[340767660,1729789846875,-1500.0,0.00018147,2]
[340767662,1729789846884,-13847.6665202,0.00018157,2]
[340767664,1729789846895,-151.0,0.00018157,2]
[340767666,1729789846904,-151.0,0.00018157,2]
[340767668,1729789846914,-151.0,0.00018167,2]
[340767670,1729789846923,-151.0,0.00018167,2]
[340767672,1729789846933,-151.0,0.00018167,2]
[340767674,1729789846942,-151.0,0.00018167,2]
[340767676,1729789846953,-151.0,0.00018167,2]
[340767679,1729789846965,-151.0,0.00018167,2]
[340767681,1729789846974,-161.926636,0.00018167,2]
[340767683,1729789846984,-151.0,0.00018167,2]
[340767685,1729789846995,-151.0,0.00018167,2]
[340767687,1729789847005,-502.43718,0.00018167,2]
[340767689,1729789847014,-502.43718,0.00018167,2]
[340767691,1729789847025,-151.0,0.00018167,2]
[340767693,1729789847036,-151.0,0.00018167,2]
[340767695,1729789847046,-500.0,0.00018173,2]
[340767698,1729789847057,-500.0,0.00018173,2]
[340767700,1729789847068,-500.0,0.00018173,2]
[340767702,1729789847079,-161.87290119,0.00018173,2]
[340767704,1729789847090,-167.94795725,0.00018173,2]
[340767706,1729789847102,-603.5147498,0.00018173,2]
[340767708,1729789847113,-500.0,0.00018173,2]
[340767710,1729789847122,-200.86420187,0.00018173,2]
[340767712,1729789847134,-500.19822735,0.00018173,2]
[340767714,1729789847144,-190.60507425,0.00018173,2]
[340767716,1729789847154,-500.0,0.00018173,2]
[340767718,1729789847166,-500.0,0.00018173,2]
[340767721,1729789847177,-151.0,0.00018177,2]
[340767723,1729789847188,-151.0,0.00018177,2]
[340767725,1729789847197,-151.0,0.00018177,2]
[340767727,1729789847207,-151.0,0.00018177,2]
[340767729,1729789847216,-151.0,0.00018177,2]
[340767731,1729789847226,-151.0,0.00018177,2]
[340767733,1729789847236,-272.94116,0.00018177,2]
[340767735,1729789847246,-272.94116,0.00018177,2]
[340767737,1729789847255,-151.0,0.00018177,2]
[340767739,1729789847264,-13847.6665202,0.00018177,2]
[340767741,1729789847274,-27695.3330404,0.00018178,2]
[340767743,1729789847285,-151.0,0.00018178,2]
[340767745,1729789847294,-151.0,0.00018178,2]
[340767747,1729789847306,-151.0,0.00018178,2]
[340767749,1729789847314,-151.0,0.00018178,2]
[340767751,1729789847324,-151.0,0.00018178,2]
[340767753,1729789847333,-151.0,0.00018178,2]
[340767755,1729789847343,-298.873881,0.00018178,2]
[340767757,1729789847352,-298.873881,0.00018178,2]
[340767759,1729789847363,-151.0,0.00018178,2]
[340767762,1729789847372,-151.0,0.00018178,2]
[340767764,1729789847382,-151.0,0.00018178,2]
[340767766,1729789847391,-151.0,0.00018178,2]
[340767768,1729789847400,-206.601643,0.00018178,2]
[340767770,1729789847410,-206.601643,0.00018178,2]
[340767772,1729789847421,-151.0,0.00018178,2]
[340767774,1729789847430,-151.0,0.00018178,2]
[340767776,1729789847439,-151.0,0.00018178,2]
[340767778,1729789847448,-993.57,0.00018187,2]
[340767780,1729789847458,-1513.74,0.00018187,2]
[340767782,1729789847466,-501.72889903,0.00018187,2]
[340767784,1729789847476,-500.0,0.00018187,2]
[340767786,1729789847486,-759.65,0.00018187,2]
[340767788,1729789847495,-1158.14,0.00018187,2]
[340767790,1729789847505,-500.0,0.00018187,2]
[340767792,1729789847515,-506.9,0.00018187,2]
[340767794,1729789847525,-501.65265002,0.00018187,2]
[340767796,1729789847535,-514.27037915,0.00018187,2]
[340767798,1729789847545,-650.37,0.00018187,2]
[340767800,1729789847556,-500.0,0.00018187,2]
[340767802,1729789847566,-500.0,0.00018187,2]
[340767804,1729789847577,-502.79471675,0.00018187,2]
[340767806,1729789847587,-689.97,0.00018187,2]
[340767808,1729789847596,-500.0,0.00018187,2]
[340767810,1729789847606,-995.27,0.00018187,2]
[340767812,1729789847616,-500.0,0.00018187,2]
[340767814,1729789847625,-500.0,0.00018187,2]
[340767816,1729789847636,-1620.99,0.00018187,2]
[340767818,1729789847646,-632.06,0.00018187,2]
[340767820,1729789847656,-500.0,0.00018187,2]
[340767822,1729789847667,-160.999844,0.00018187,2]
[340767824,1729789847677,-557.16503932,0.00018187,2]
[340767826,1729789847686,-156.5,0.00018187,2]
[340767828,1729789847695,-151.0,0.00018187,2]
[340767830,1729789847705,-151.0,0.00018187,2]
[340767832,1729789847714,-151.0,0.00018187,2]
[340767834,1729789847725,-744.08,0.00018187,2]
[340767837,1729789847737,-151.0,0.00018187,2]
[340767839,1729789847747,-151.0,0.00018187,2]
[340767841,1729789847757,-852.58,0.00018187,2]
[340767843,1729789847767,-151.0,0.00018187,2]
[340767845,1729789847779,-502.43718,0.00018187,2]
[340767847,1729789847788,-502.43718,0.00018187,2]
[340767849,1729789847797,-977.34,0.00018187,2]
[340767851,1729789847808,-246.812669,0.00018187,2]
[340767853,1729789847819,-1512.63,0.00018187,2]
[340767855,1729789847829,-500.0,0.00018187,2]
[340767857,1729789847839,-500.0,0.00018187,2]
[340767859,1729789847849,-1057.31,0.00018187,2]
[340767862,1729789847860,-1871.87,0.00018187,2]
[340767864,1729789847870,-779.18,0.00018187,2]
[340767866,1729789847880,-500.0,0.00018187,2]
[340767868,1729789847890,-500.0,0.00018187,2]
[340767870,1729789847901,-6860.38,0.00018187,2]
[340767872,1729789847912,-500.0,0.00018187,2]
[340767874,1729789847921,-15635.61,0.00018187,2]
[340767876,1729789847931,-501.94931898,0.00018187,2]
[340767878,1729789847941,-500.0,0.00018187,2]
[340767881,1729789847952,-500.0,0.00018187,2]
[340767883,1729789847964,-957.98,0.00018187,2]
[340767885,1729789847974,-5297.04,0.00018187,2]
[340767887,1729789847985,-1839.29,0.00018187,2]
[340767889,1729789847995,-500.0,0.00018187,2]
[340767891,1729789848005,-500.0,0.00018187,2]
[340767893,1729789848014,-500.0,0.00018187,2]
[340767895,1729789848024,-504.17545194,0.00018187,2]
[340767897,1729789848033,-500.0,0.00018187,2]
[340767899,1729789848043,-500.0,0.00018187,2]
[340767901,1729789848053,-582.96,0.00018188,2]
[340767903,1729789848063,-500.0,0.00018188,2]
[340767905,1729789848072,-1153.0,0.00018188,2]
[340767907,1729789848085,-632.04,0.00018188,2]
[340767909,1729789848095,-447.90648479,0.00018188,2]
[340767911,1729789848105,-500.0,0.00018188,2]
[340767913,1729789848114,-1020.41,0.00018188,2]
[340767915,1729789848126,-1471.63,0.00018188,2]
[340767917,1729789848136,-507.85,0.00018188,2]
[340767919,1729789848145,-790.82,0.00018188,2]
[340767921,1729789848155,-491.24287195,0.00018188,2]
[340767923,1729789848166,-500.0,0.00018188,2]
[340767925,1729789848177,-500.0,0.00018188,2]
[340767927,1729789848187,-500.0,0.00018188,2]
[340767929,1729789848197,-500.0,0.00018188,2]
[340767931,1729789848207,-700.83,0.00018188,2]
[340767932,1729789848216,-500.0,0.00018188,2]
[340767933,1729789848226,-601.67375026,0.00018188,2]
[340767934,1729789848237,-500.0,0.00018188,2]
[340767935,1729789848247,-500.0,0.00018188,2]
[340767936,1729789848257,-552.48341958,0.00018188,2]
[340767937,1729789848268,-500.0,0.00018188,2]
[340767938,1729789848278,-1009.92,0.00018188,2]
[340767939,1729789848287,-676.08,0.00018188,2]
[340767940,1729789848297,-500.0,0.00018188,2]
[340767941,1729789848306,-500.0,0.00018188,2]
[340767942,1729789848316,-561.31957785,0.00018188,2]
[340767944,1729789848326,-913.19,0.00018188,2]
[340767946,1729789848335,-964.12,0.00018188,2]
[340767948,1729789848344,-573.56513756,0.00018188,2]
[340767950,1729789848354,-500.0,0.00018188,2]
[340767952,1729789848363,-548.27,0.00018188,2]
[340767954,1729789848373,-980.28,0.00018188,2]
[340767956,1729789848383,-500.0,0.00018188,2]
[340767958,1729789848392,-576.96709152,0.00018188,2]
[340767960,1729789848402,-500.0,0.00018188,2]
[340767962,1729789848413,-500.0,0.00018188,2]
[340767964,1729789848422,-530.88,0.00018188,2]
[340767966,1729789848433,-500.0,0.00018188,2]
[340767968,1729789848443,-500.0,0.00018188,2]
[340767970,1729789848454,-307.96638921,0.00018188,2]
[340767972,1729789848464,-871.2,0.00018188,2]
[340767974,1729789848473,-500.0,0.00018188,2]
[340767976,1729789848483,-561.66304094,0.00018188,2]
[340767978,1729789848494,-500.0,0.00018188,2]
[340767980,1729789848503,-500.0,0.00018188,2]
[340767982,1729789848512,-206.81308793,0.00018188,2]
[340767984,1729789848523,-500.0,0.00018188,2]
[340767987,1729789848534,-500.0,0.00018188,2]
[340767989,1729789848543,-500.0,0.00018188,2]
[340767991,1729789848553,-500.0,0.00018188,2]
[340767993,1729789848563,-500.0,0.00018188,2]
[340767995,1729789848572,-991.93,0.00018188,2]
[340767997,1729789848581,-899.55,0.00018188,2]
[340767999,1729789848592,-500.0,0.00018188,2]
[340768001,1729789848601,-500.0,0.00018188,2]
[340768003,1729789848611,-1264.05,0.00018188,2]
[340768005,1729789848620,-500.0,0.00018188,2]
[340768007,1729789848629,-500.0,0.00018188,2]
[340768009,1729789848639,-741.58,0.00018188,2]
[340768011,1729789848649,-500.0,0.00018188,2]
[340768013,1729789848659,-1655.73,0.00018188,2]
[340768015,1729789848668,-890.73,0.00018188,2]
[340768017,1729789848677,-500.0,0.00018188,2]
[340768019,1729789848687,-500.0,0.00018188,2]
[340768021,1729789848697,-500.0,0.00018188,2]
[340768023,1729789848706,-500.0,0.00018188,2]
[340768025,1729789848716,-2577.36,0.00018188,2]
[340768027,1729789848726,-500.0,0.00018188,2]
[340768029,1729789848735,-100.13587219,0.00018188,2]
[340768031,1729789848752,-399.86412781,0.00018188,2]
[340768033,1729789848761,-219.86375545,0.00018188,2]
[340772405,1729789894982,-781.519784,0.00016385,2]
[340772407,1729789895007,-500.0,0.00017175,2]
[340772408,1729789895031,-514.1,0.00017184,2]
[340772409,1729789895055,-500.0,0.00017184,2]
[340772410,1729789895079,-500.0,0.00017185,2]
[340772411,1729789895106,-2909.0,0.00017185,2]
[340772412,1729789895131,-1726.12,0.00017185,2]
[340772413,1729789895157,-1329.09,0.00017185,2]
[340772414,1729789895181,-500.0,0.00017185,2]
[340772415,1729789895205,-2693.89,0.00017185,2]
[340772416,1729789895229,-500.0,0.00017185,2]
[340772417,1729789895256,-608.31,0.00017186,2]
[340772418,1729789895281,-500.0,0.00017186,2]
[340772419,1729789895306,-1155.08,0.00017186,2]
[340772420,1729789895332,-862.07,0.00017186,2]
[340772421,1729789895358,-500.0,0.00017186,2]
[340772422,1729789895383,-909.59,0.00017186,2]
[340772423,1729789895407,-1449.6,0.00017186,2]
[340772424,1729789895431,-1211.39,0.00017186,2]
[340772425,1729789895455,-633.18,0.00017186,2]
[340772426,1729789895481,-500.0,0.00017186,2]
[340772427,1729789895504,-500.0,0.00017186,2]